bitfinex/quotes_ETHUSD_20251206
["timestamp","ask_amount","ask_price","bid_price","bid_amount"]
[1765055906585,0.4895,3043.2,3043.0,9.128048]
[1765055907657,0.3334,3043.1,3043.0,9.128048]
[1765055907863,0.3334,3043.1,3042.9,9.128048]
[1765055908064,0.4719,3043.0,3042.9,9.128048]
[1765055908276,0.9614,3043.0,3042.9,9.128048]
[1765055911556,1.62304539,3043.3,3042.9,12.41438669]
[1765055911756,0.4719,3043.2,3043.0,9.128048]
[1765055911956,0.4895,3043.1,3043.0,9.128048]
[1765055916430,0.9614,3043.1,3043.0,9.128048]
[1765055916836,4.2475227,3043.1,3042.9,9.128048]
[1765055917000,2.70980706,3043.0,3042.5,9.128048]
[1765055917200,2.37640706,3043.0,3042.5,9.128048]
[1765055917536,0.679,3042.6,3042.5,9.128048]
[1765055917739,1.1509,3042.6,3042.5,9.128048]
[1765055918240,4.43756272,3042.6,3042.5,9.128048]
[1765055921031,1.1509,3042.6,3042.5,9.128048]
[1765055924219,2.30204539,3042.6,3042.5,9.128048]
[1765055925034,0.6614,3042.9,3042.6,9.128048]
[1765055925237,1.15114539,3042.8,3042.7,9.128048]
[1765055925425,1.15114539,3042.8,3042.5,9.128048]
[1765055925627,0.4895,3042.7,3042.5,9.128048]
[1765055926333,0.326,3042.6,3042.5,9.128048]
[1765055927837,1.15114539,3042.8,3042.5,9.128048]
[1765055928037,1.62304539,3042.8,3042.5,9.128048]
[1765055928407,4.90950302,3042.8,3042.5,9.128048]
[1765055929117,1.62304539,3042.8,3042.5,9.128048]
[1765055929340,4.90949414,3042.8,3042.5,9.128048]
[1765055929535,1.62304539,3042.8,3042.5,9.128048]
[1765055930339,4.90949744,3042.8,3042.5,9.128048]
[1765055931255,1.62304539,3042.8,3042.5,9.128048]
[1765055931817,1.15114539,3045.5,3042.5,9.128048]
[1765055931818,1.61954539,3043.3,3042.7,0.4628]
[1765055932018,4.43708817,3043.3,3042.9,9.128048]
[1765055932245,0.4779,3043.2,3042.9,9.128048]
[1765055932543,0.4779,3043.2,3042.6,0.4978]
[1765055932544,0.4779,3043.2,3042.7,9.128048]
[1765055933043,0.4779,3043.2,3042.8,6.546044]
[1765055933258,0.52,3043.4,3042.8,9.128048]
[1765055933259,4.43696871,3043.4,3042.8,9.128048]
[1765055933442,1.83054539,3042.9,3042.6,9.128048]
[1765055933618,0.4904,3042.7,3042.6,9.128048]
[1765055934047,0.9683,3042.7,3042.5,9.128048]
[1765055934346,1.47254539,3042.6,3042.5,9.128048]
[1765055934546,1.95044539,3042.6,3042.5,9.128048]
[1765055934757,5.23710811,3042.6,3042.5,9.128048]
[1765055934942,6.08946608,3042.6,3042.5,9.128048]
[1765055935714,5.23710811,3042.6,3042.5,9.128048]
[1765055937926,0.3214,3042.6,3042.5,9.128048]
[1765055939068,1.15114539,3042.7,3042.5,9.617648]
[1765055939359,5.62268506,3042.9,3042.6,9.128048]
[1765055939650,1.15114539,3042.7,3042.6,9.128048]
[1765055939858,1.15114539,3042.7,3042.5,9.128048]
[1765055940559,1.15114539,3042.9,3042.6,0.4896]
[1765055940728,4.28383035,3043.3,3042.8,0.4896]
[1765055940933,1.15114539,3043.2,3042.8,0.4896]
[1765055941242,1.15114539,3043.2,3043.0,9.128048]
[1765055941563,1.15114539,3043.7,3043.2,9.128048]
[1765055941741,1.15114539,3043.5,3043.2,9.128048]
[1765055942130,4.4366435,3043.7,3043.2,9.128048]
[1765055942326,4.9145435,3043.7,3043.2,9.128048]
[1765055944446,4.95641207,3043.9,3043.4,9.128048]
[1765055944650,4.95641207,3043.9,3043.2,9.128048]
[1765055944651,0.4779,3043.6,3043.2,9.128048]
[1765055945154,0.4921,3043.3,3043.1,9.128048]
[1765055945358,0.3197,3043.2,3042.9,9.128048]
[1765055945735,0.7976,3043.2,3042.9,9.128048]
[1765055946873,0.4904,3043.0,3042.9,9.128048]
[1765055947045,1.15114539,3043.3,3043.0,9.128048]
[1765055947246,1.62904539,3043.3,3043.0,9.128048]
[1765055948472,1.62904539,3043.3,3042.6,3.28665912]
[1765055948473,1.64324539,3043.1,3042.5,9.128048]
[1765055948774,0.3197,3042.9,3042.5,9.128048]
[1765055948981,1.47084539,3042.9,3042.5,9.128048]
[1765055949185,0.4904,3042.6,3042.5,9.128048]
[1765055950281,1.33844539,3042.9,3042.6,9.128048]
[1765055950782,1.62904539,3043.1,3042.6,9.128048]
[1765055950984,2.14904539,3043.1,3042.6,9.128048]
[1765055951350,5.43517726,3043.1,3042.6,9.128048]
[1765055951955,1.15114539,3042.9,3042.6,9.128048]
[1765055952155,1.15114539,3042.9,3042.5,9.128048]
[1765055952348,1.81634539,3042.9,3042.5,9.128048]
[1765055952755,0.6652,3042.9,3042.6,9.128048]
[1765055953203,0.6652,3042.9,3042.5,9.128048]
[1765055953379,1.33844539,3042.9,3042.5,9.128048]
[1765055953585,0.4779,3042.8,3042.5,9.128048]
[1765055954111,1.33844539,3042.9,3042.5,12.41479283]
[1765055954311,1.15114539,3042.9,3042.8,9.128048]
[1765055954474,1.67114539,3043.1,3042.8,9.128048]
[1765055954811,0.4921,3042.9,3042.6,9.128048]
[1765055955397,0.4921,3042.9,3042.6,12.41468899]
[1765055955600,1.15114539,3043.1,3042.5,9.128048]
[1765055955801,1.15114539,3043.1,3042.6,3.28662226]
[1765055956008,1.15114539,3043.1,3042.7,9.128048]
[1765055956207,1.62904539,3043.1,3042.7,9.128048]
[1765055956782,1.15114539,3043.1,3042.7,9.128048]
[1765055956982,1.15114539,3043.1,3042.6,9.128048]
[1765055956983,0.4921,3042.8,3042.6,9.128048]
[1765055957183,1.15114539,3042.9,3042.7,9.128048]
[1765055958501,0.4921,3042.8,3042.6,9.128048]
[1765055958668,0.97,3042.8,3042.6,9.128048]
[1765055959014,0.3197,3042.7,3042.6,9.128048]
[1765055960007,1.15114539,3042.9,3042.7,9.128048]
[1765055961733,1.61844539,3043.1,3042.7,9.128048]
[1765055962238,0.4673,3043.0,3042.7,9.128048]
[1765055963626,0.4673,3043.0,3042.6,9.128048]
[1765055963826,0.4673,3043.0,3042.7,9.128048]
[1765055965536,1.15114539,3043.1,3042.7,9.128048]
[1765055965711,1.15114539,3043.1,3042.8,9.128048]
[1765055968658,1.15114539,3043.3,3043.0,0.4977]
[1765055968858,1.15114539,3043.3,3043.2,9.128048]
[1765055969229,1.15114539,3043.3,3043.0,9.128048]
[1765055972655,1.15114539,3043.5,3043.1,3.2861227]
[1765055972835,1.15114539,3043.5,3043.2,9.128048]
[1765055973550,1.61844539,3043.5,3043.2,9.128048]
[1765055973947,1.60954539,3043.3,3043.2,9.128048]
[1765055974149,1.60954539,3043.3,3042.9,9.128048]
[1765055974460,2.07684539,3043.3,3042.9,9.128048]
[1765055975862,0.3635,3043.0,3042.9,9.128048]
[1765055976036,0.3635,3043.0,3042.6,9.128048]
[1765055976237,1.34034539,3042.9,3042.6,9.128048]
[1765055976440,0.4555,3042.7,3042.5,9.128048]
[1765055976655,0.3645,3042.6,3042.5,9.128048]
[1765055977764,0.4673,3042.8,3042.5,9.128048]
[1765055978268,1.67114539,3043.3,3042.7,0.4977]
[1765055978570,1.67114539,3043.3,3042.6,9.128048]
[1765055978571,1.15114539,3043.3,3042.9,9.128048]
[1765055978869,5.42413639,3043.5,3043.0,9.128048]
[1765055979166,2.13844539,3043.5,3043.0,9.128048]
[1765055980380,2.13844539,3043.5,3043.2,9.128048]
[1765055982345,1.15114539,3043.5,3043.2,9.128048]
[1765055982550,1.15114539,3043.5,3043.4,9.128048]
[1765055983071,1.60954539,3043.5,3043.4,9.128048]
[1765055984280,0.4584,3043.5,3043.2,9.128048]
[1765055984777,0.9257,3043.5,3043.2,9.128048]
[1765055985680,0.4584,3043.5,3043.2,9.128048]
[1765055988684,0.4673,3043.4,3043.2,9.128048]
[1765055988857,0.3616,3043.3,3043.0,9.128048]
[1765055989050,0.3616,3043.3,3043.1,9.128048]
[1765055990756,0.3616,3043.3,3043.2,6.546044]
[1765055990956,0.3616,3043.3,3043.2,9.128048]
[1765055991370,1.15114539,3043.7,3043.3,9.128048]
[1765055991571,0.4841,3043.6,3043.3,9.128048]
[1765055991783,0.4841,3043.6,3043.2,9.128048]
[1765055993590,1.15114539,3043.5,3043.2,9.128048]
[1765055993790,0.4716,3043.3,3043.2,9.128048]
[1765055994090,0.4716,3043.3,3043.1,9.128048]
[1765055994499,0.4716,3043.2,3043.0,9.128048]
[1765055995083,0.4716,3043.2,3043.1,9.128048]
[1765055995771,0.3442,3043.3,3043.1,9.128048]
[1765055995988,1.15114539,3043.5,3043.2,9.128048]
[1765055996290,0.4554,3043.4,3043.2,9.128048]
[1765055998593,0.4554,3043.6,3043.3,9.580248]
[1765055998758,0.4554,3043.6,3043.4,9.128048]
[1765055999496,0.4716,3043.5,3043.3,9.128048]
[1765056000114,1.15114539,3043.7,3043.3,9.128048]
[1765056000400,0.4554,3043.6,3043.5,9.128048]
[1765056000700,0.4554,3043.6,3043.2,6.31691861]
[1765056000701,0.4554,3043.6,3043.3,9.128048]
[1765056000917,3.7409924,3043.6,3043.3,9.128048]
[1765056001065,0.4716,3043.4,3043.1,9.128048]
[1765056001463,0.4716,3043.2,3043.1,9.128048]
[1765056001821,0.4716,3043.2,3042.7,9.128048]
[1765056002105,1.15114539,3043.1,3042.7,9.128048]
[1765056002583,1.60654539,3043.1,3042.9,9.128048]
[1765056002894,1.15114539,3043.3,3042.9,9.128048]
[1765056003066,1.60654539,3043.3,3042.9,9.128048]
[1765056003266,1.60654539,3043.3,3042.8,9.60336207]
[1765056003267,4.43665896,3043.7,3043.2,0.4522]
[1765056003566,0.4554,3043.6,3043.3,9.128048]
[1765056004097,0.4716,3043.4,3042.9,9.128048]
[1765056004295,0.4716,3043.0,3042.9,9.128048]
[1765056004683,0.927,3043.0,3042.9,9.128048]
[1765056007350,1.15114539,3043.1,3042.9,9.128048]
[1765056007851,0.4716,3043.0,3042.9,7.046044]
[1765056008058,1.60654539,3043.1,3042.9,9.128048]
[1765056008356,0.4554,3043.1,3042.9,9.128048]
[1765056008525,1.15114539,3043.3,3042.9,12.41436084]
[1765056008728,1.15114539,3043.3,3043.0,9.128048]
[1765056008929,1.15114539,3043.1,3042.9,9.128048]
[1765056009133,0.4716,3042.9,3042.7,9.128048]
[1765056009663,0.4554,3043.0,3042.5,0.52]
[1765056009664,2.27124539,3042.8,3042.5,9.128048]
[1765056009829,1.62164539,3042.6,3042.5,9.128048]
[1765056010240,2.07704539,3042.6,3042.5,9.128048]
[1765056010623,1.62164539,3042.6,3042.5,9.128048]
[1765056010828,0.1931,3042.8,3042.6,9.128048]
[1765056011028,4.43705414,3043.3,3042.7,6.76911861]
[1765056011278,1.15114539,3043.1,3042.8,9.128048]
[1765056011973,1.15114539,3043.3,3043.1,9.128048]
[1765056012176,0.4716,3043.2,3043.0,9.128048]
[1765056012339,0.4716,3043.2,3042.8,9.128048]
[1765056012530,0.3564,3043.0,3042.6,12.41467491]
[1765056012730,0.4705,3042.8,3042.7,9.128048]
[1765056013346,0.4554,3043.1,3042.8,9.128048]
[1765056016132,1.15114539,3043.3,3042.8,12.41449154]
[1765056016335,1.15114539,3043.3,3042.9,9.128048]
[1765056016557,1.60654539,3043.3,3042.9,9.128048]
[1765056016831,1.15114539,3043.3,3042.9,9.128048]
[1765056017251,1.60654539,3043.3,3042.9,9.128048]
[1765056017765,0.4716,3043.0,3042.8,9.128048]
[1765056017975,0.5495,3042.9,3042.8,9.128048]
[1765056018171,0.5495,3042.9,3042.5,9.128048]
[1765056018172,3.28644669,3042.8,3042.5,9.128048]
[1765056018361,1.15114539,3042.6,3042.5,9.128048]
[1765056018569,1.62274539,3042.6,3042.5,9.128048]
[1765056018764,2.07814539,3042.6,3042.5,9.128048]
[1765056019054,1.15114539,3042.9,3042.6,9.128048]
[1765056019737,1.60654539,3042.9,3042.6,9.128048]
[1765056020377,1.15114539,3042.9,3042.6,9.128048]
[1765056020579,1.33264539,3042.9,3042.6,9.128048]
[1765056020781,1.81944539,3042.9,3042.6,9.128048]
[1765056021560,1.81944539,3042.9,3042.5,9.128048]
[1765056022072,0.4868,3042.8,3042.5,9.128048]
[1765056022377,1.15114539,3042.7,3042.5,9.128048]
[1765056022694,0.4919,3042.6,3042.5,9.128048]
[1765056022861,0.9787,3042.6,3042.5,9.128048]
[1765056025308,4.26536272,3042.6,3042.5,9.128048]
[1765056025604,0.9787,3042.6,3042.5,9.128048]
[1765056030984,4.26536272,3042.6,3042.5,9.128048]
[1765056031289,5.13565857,3042.6,3042.5,9.128048]
[1765056031597,4.26536272,3042.6,3042.5,9.128048]
[1765056031903,4.26536272,3042.6,3042.4,0.001]
[1765056031904,4.88536272,3042.6,3042.4,0.001]
[1765056032195,1.95464539,3042.5,3042.4,0.001]
[1765056033305,5.24141613,3042.5,3042.4,0.001]
[1765056033473,6.37544688,3042.5,3042.4,0.001]
[1765056035299,6.27544688,3042.5,3042.4,0.001]
[1765056035495,2.18517614,3042.5,3042.4,0.001]
[1765056035698,5.33270149,3042.5,3042.4,0.001]
[1765056035904,2.04593075,3042.5,3042.4,0.001]
[1765056036399,2.53273075,3042.5,3042.4,0.001]
[1765056037118,0.4919,3042.5,3042.4,0.001]
[1765056037298,0.52,3042.5,3042.4,0.001]
[1765056037806,1.0119,3042.5,3042.4,0.001]
[1765056038098,4.78547074,3042.5,3042.4,0.001]
[1765056044511,4.29867074,3042.5,3042.4,0.001]
[1765056047014,3.80677074,3042.5,3042.4,0.4639]
[1765056047987,3.80677074,3042.5,3042.4,0.001]
[1765056048187,5.17180067,3042.5,3042.4,0.001]
[1765056052628,4.29867074,3042.5,3042.4,0.001]
[1765056052794,3.80677074,3042.5,3042.4,0.001]
[1765056053423,4.28977074,3042.5,3042.4,0.001]
[1765056057225,4.76467074,3042.5,3042.4,0.001]
[1765056063940,4.28977074,3042.5,3042.4,0.001]
[1765056064449,3.80677074,3042.5,3042.4,0.001]
[1765056064633,0.52,3042.7,3042.4,0.9255]
[1765056064831,4.43764041,3042.8,3042.6,0.4617]
[1765056065036,0.483,3042.5,3042.4,0.001]
[1765056065360,1.15114539,3042.5,3042.4,0.001]
[1765056067114,4.43791613,3042.5,3042.4,0.001]
[1765056067746,1.15114539,3042.5,3042.4,0.001]
[1765056068060,1.15114539,3042.5,3042.4,0.4627]
[1765056068839,1.15114539,3042.8,3042.4,0.9255]
[1765056069036,1.15114539,3042.8,3042.7,9.128048]
[1765056069347,1.15114539,3042.8,3042.5,9.128048]
[1765056069926,4.43759208,3042.8,3042.5,9.128048]
[1765056070122,1.15114539,3043.1,3042.5,9.128048]
[1765056070334,1.15114539,3043.1,3042.8,9.128048]
[1765056070335,4.43729195,3043.1,3042.8,9.128048]
[1765056070549,4.95729195,3043.1,3042.8,9.128048]
[1765056070749,4.95729195,3043.1,3042.7,9.128048]
[1765056071053,4.95729195,3043.1,3042.7,0.4628]
[1765056071276,4.95729195,3043.1,3042.8,9.128048]
[1765056074976,1.15114539,3042.9,3042.8,9.128048]
[1765056075886,1.15114539,3042.9,3042.8,9.589748]
[1765056078501,1.15114539,3042.9,3042.8,10.052548]
[1765056078984,1.15114539,3042.9,3042.8,9.589748]
[1765056079363,4.957299,3043.1,3042.9,9.128048]
[1765056079571,4.957299,3043.1,3043.0,0.4617]
[1765056080659,0.52,3043.1,3043.0,0.4617]
[1765056081062,0.52,3043.1,3043.0,9.589748]
[1765056081680,4.43713722,3043.3,3043.1,9.128048]
[1765056081881,4.79164203,3043.4,3043.1,9.128048]
[1765056082289,1.15114539,3043.3,3043.1,9.128048]
[1765056083603,1.15114539,3043.3,3042.9,9.128048]
[1765056084114,4.43714242,3043.3,3042.9,9.128048]
[1765056084414,4.43714242,3043.3,3043.2,0.4844]
[1765056084910,4.43714242,3043.3,3043.0,0.4839]
[1765056085119,4.43714242,3043.3,3042.8,0.4839]
[1765056085413,4.43714242,3043.3,3042.9,9.128048]
[1765056087292,4.43714242,3043.3,3042.9,0.4839]
[1765056087587,4.43714242,3043.3,3043.0,9.128048]
[1765056087792,1.15114539,3043.3,3043.2,0.5769]
[1765056088022,4.43705213,3043.3,3043.2,0.5769]
[1765056088328,3.80490191,3043.4,3043.2,0.4844]
[1765056088626,1.15114539,3043.3,3043.2,0.4844]
[1765056089226,4.43712286,3043.3,3043.0,0.0925]
[1765056089427,4.92562286,3043.3,3043.0,0.0925]
[1765056089597,1.63964539,3043.3,3043.1,9.128048]
[1765056089799,1.15114539,3043.3,3043.1,9.128048]
[1765056090422,1.15114539,3043.3,3043.2,0.4844]
[1765056092656,4.43640443,3043.9,3043.2,10.57674668]
[1765056092833,1.15114539,3043.7,3043.5,9.128048]
[1765056093194,0.4885,3043.6,3043.3,9.128048]
[1765056094724,1.15114539,3043.7,3043.5,0.4844]
[1765056095521,4.93205038,3043.7,3043.3,0.4839]
[1765056095724,4.93205038,3043.7,3043.1,3.76998451]
[1765056095919,4.93205038,3043.7,3043.2,9.128048]
[1765056100171,1.64654539,3043.7,3043.2,12.41402342]
[1765056100343,1.15114539,3043.7,3043.3,9.128048]
[1765056100543,1.15114539,3043.7,3043.4,9.128048]
[1765056101962,1.15114539,3043.9,3043.4,9.128048]
[1765056102142,1.67014539,3043.9,3043.6,0.4844]
[1765056102346,1.67014539,3043.9,3043.7,9.128048]
[1765056102642,0.519,3043.9,3043.7,9.128048]
[1765056102844,0.519,3043.9,3043.8,0.4844]
[1765056103234,0.519,3043.9,3043.5,6.79930083]
[1765056103556,1.67014539,3043.9,3043.6,9.128048]
[1765056106071,4.93160658,3044.1,3043.8,0.4844]
[1765056106072,2.16554539,3044.1,3043.8,0.4844]
[1765056107542,1.67014539,3044.1,3043.8,0.4844]
[1765056107745,2.16554539,3044.1,3043.8,0.4844]
[1765056108469,1.15114539,3043.9,3043.8,0.4844]
[1765056108971,1.15114539,3044.1,3043.8,0.4844]
[1765056109267,5.14857514,3044.3,3043.8,0.9683]
[1765056109470,1.15114539,3044.1,3043.8,0.9683]
[1765056109647,1.15114539,3044.1,3043.9,9.128048]
[1765056110047,1.15114539,3044.1,3043.8,9.128048]
[1765056110378,3.95228146,3044.3,3043.8,9.128048]
[1765056110546,1.62494539,3044.2,3043.8,9.128048]
[1765056111380,1.62494539,3044.2,3043.9,9.128048]
[1765056112056,0.6669,3043.9,3043.6,9.128048]
[1765056112259,4.90566293,3043.7,3043.1,3.28606173]
[1765056112448,1.15114539,3043.5,3043.1,9.128048]
[1765056112966,0.4738,3043.4,3043.1,9.128048]
[1765056113782,0.4738,3043.4,3043.2,9.128048]
[1765056114279,1.15114539,3043.5,3043.2,9.128048]
[1765056114482,1.62494539,3043.5,3043.2,9.128048]
[1765056115384,0.4565,3043.4,3043.2,9.128048]
[1765056115683,1.15114539,3043.5,3043.2,9.128048]
[1765056115883,1.60764539,3043.5,3043.2,9.128048]
[1765056118487,1.60764539,3043.5,3043.2,12.41405055]
[1765056118659,1.60764539,3043.5,3043.3,9.128048]
[1765056119007,0.4565,3043.4,3043.1,9.128048]
[1765056119162,0.472,3043.2,3043.1,12.41416711]
[1765056119363,0.4565,3043.4,3043.2,3.28600342]
[1765056119676,0.4565,3043.4,3043.3,9.128048]
[1765056120183,0.9285,3043.4,3043.3,9.128048]
[1765056120591,0.519,3043.7,3043.4,9.128048]
[1765056120786,0.519,3043.7,3043.4,9.626748]
[1765056120959,0.519,3043.7,3043.5,9.128048]
[1765056121283,0.519,3043.8,3043.5,9.128048]
[1765056121493,0.472,3043.6,3043.2,9.128048]
[1765056121783,0.472,3043.3,3042.4,0.001]
[1765056122086,0.8637,3043.2,3042.5,9.128048]
[1765056122300,6.93440083,3043.2,3042.5,9.128048]
[1765056122591,6.93440083,3043.2,3042.4,0.001]
[1765056122592,3.94076272,3042.6,3042.4,0.001]
[1765056122803,0.8706,3042.5,3042.4,0.001]
[1765056122992,1.3271,3042.5,3042.4,0.001]
[1765056123161,1.45871639,3042.5,3042.4,0.001]
[1765056124002,2.60986178,3042.5,3042.4,0.001]
[1765056124662,5.89663252,3042.5,3042.4,0.001]
[1765056125086,2.60986178,3042.5,3042.4,0.001]
[1765056125363,2.15336178,3042.5,3042.4,0.001]
[1765056126589,2.60986178,3042.5,3042.4,0.001]
[1765056126896,5.89663252,3042.5,3042.4,0.001]
[1765056127070,2.60986178,3042.5,3042.4,0.001]
[1765056127463,2.15336178,3042.5,3042.4,0.001]
[1765056127980,2.60986178,3042.5,3042.4,0.001]
[1765056129180,5.89663252,3042.5,3042.4,0.001]
[1765056132820,5.44013252,3042.5,3042.4,0.001]
[1765056133328,5.89663252,3042.5,3042.4,0.001]
[1765056134207,6.23543949,3042.5,3042.4,0.001]
[1765056135528,13.09742895,3042.5,3042.4,0.001]
[1765056135720,13.05634432,3042.5,3042.4,0.001]
[1765056136021,6.74094349,3042.5,3042.4,0.001]
[1765056136996,6.23543949,3042.5,3042.4,0.001]
[1765056138296,5.25993949,3042.5,3042.4,0.001]
[1765056138527,5.44013252,3042.5,3042.4,0.001]
[1765056139207,5.30851613,3042.5,3042.4,0.001]
[1765056139534,5.80610076,3042.5,3042.4,0.001]
[1765056141136,5.76501613,3042.5,3042.4,0.001]
[1765056142105,6.89611424,3042.5,3042.4,0.001]
[1765056142310,9.11202119,3042.5,3042.4,0.001]
[1765056142522,9.24364451,3042.5,3042.4,0.001]
[1765056143131,9.14364451,3042.5,3042.4,0.001]
[1765056143348,9.01202119,3042.5,3042.4,0.001]
[1765056147623,9.11202119,3042.5,3042.4,0.001]
[1765056147822,9.24364451,3042.5,3042.4,0.001]
[1765056151555,27.63996251,3042.5,3042.4,0.001]
[1765056151743,25.84351351,3042.5,3042.4,0.001]
[1765056151916,19.10587851,3042.5,3042.4,0.001]
[1765056157050,11.78625751,3042.5,3042.4,0.001]
[1765056157353,9.24364451,3042.5,3042.4,0.001]
[1765056157555,14.38723951,3042.5,3042.4,0.001]
[1765056159852,0.505504,3041.8,3041.7,0.001]
[1765056160054,1.475704,3041.8,3041.7,0.001]
[1765056160259,3.08674939,3041.8,3041.7,0.001]
[1765056160662,3.21840564,3041.8,3041.7,0.001]
[1765056161252,6.50593276,3041.8,3041.7,0.001]
[1765056161455,7.6003821,3041.8,3041.7,0.001]
[1765056165376,8.32597621,3041.8,3041.7,0.001]
[1765056176879,8.35407621,3041.8,3041.7,0.001]
[1765056178450,8.33897621,3041.8,3041.7,0.001]
[1765056179965,7.86607621,3041.8,3041.7,0.001]
[1765056180981,19.60600521,3041.8,3041.7,0.001]
[1765056181495,44.76897621,3041.8,3041.7,0.001]
[1765056181652,19.51270321,3041.8,3041.7,0.001]
[1765056182563,37.02201421,3041.8,3041.7,0.001]
[1765056182874,17.36885221,3041.8,3041.7,0.001]
[1765056183463,29.48747621,3041.8,3041.7,0.001]
[1765056184084,21.89673521,3041.8,3041.7,0.001]
[1765056184387,17.47427621,3041.8,3041.7,0.001]
[1765056184576,26.79957421,3041.8,3041.7,0.001]
[1765056184886,16.13048221,3041.8,3041.7,0.001]
[1765056185085,11.56931721,3041.8,3041.7,0.001]
[1765056185300,10.97177921,3041.8,3041.7,0.001]
[1765056185663,11.94558021,3041.8,3041.7,0.001]
[1765056186850,7.86607621,3041.8,3041.7,0.001]
[1765056187086,8.33897621,3041.8,3041.7,0.001]
[1765056187688,7.81997621,3041.8,3041.7,0.001]
[1765056188067,8.33897621,3041.8,3041.7,0.001]
[1765056191695,7.81997621,3041.8,3041.7,0.001]
[1765056191860,7.86607621,3041.8,3041.7,0.001]
[1765056193587,14.66516726,3041.8,3041.7,0.001]
[1765056193795,18.06849026,3041.8,3041.7,0.001]
[1765056193978,14.66516726,3041.8,3041.7,0.001]
[1765056197510,14.66516726,3041.8,3041.7,0.4762]
[1765056197511,6.22042687,3041.8,3041.7,0.4762]
[1765056197789,6.82952095,3041.8,3041.7,0.001]
[1765056197984,7.26132687,3041.8,3041.7,0.001]
[1765056198370,6.78842687,3041.8,3041.7,0.001]
[1765056198766,6.32042687,3041.8,3041.7,0.4762]
[1765056199405,7.39632562,3041.8,3041.7,0.4762]
[1765056199697,7.86432562,3041.8,3041.7,0.001]
[1765056201091,8.32842562,3041.8,3041.7,0.001]
[1765056202895,7.86432562,3041.8,3041.7,0.001]
[1765056203072,6.87732562,3041.8,3041.7,0.4907]
[1765056203269,7.29632562,3041.8,3041.7,0.4907]
[1765056203477,7.29632562,3041.8,3041.7,0.9866]
[1765056204174,7.29632562,3041.8,3041.7,0.4907]
[1765056204872,7.29632562,3041.8,3041.7,0.9866]
[1765056205302,7.29632562,3041.8,3041.7,0.4907]
[1765056206600,7.29632562,3041.8,3041.7,0.9866]
[1765056207199,7.29632562,3041.8,3041.7,0.4907]
[1765056212807,5.29592287,3041.8,3041.7,0.4907]
[1765056212996,5.81492287,3041.8,3041.7,0.4907]
[1765056213297,5.81492287,3041.8,3041.7,0.9866]
[1765056214197,5.29592287,3041.8,3041.7,0.9866]
[1765056214397,5.81492287,3041.8,3041.7,0.9866]
[1765056220005,5.81492287,3041.8,3041.7,0.4907]
[1765056220209,7.17901291,3041.8,3041.7,0.001]
[1765056221080,7.67341291,3041.8,3041.7,0.001]
[1765056221280,7.17901291,3041.8,3041.7,0.001]
[1765056222006,7.17901291,3041.8,3041.7,0.4907]
[1765056222178,5.81492287,3041.8,3041.7,0.4907]
[1765056222612,5.81492287,3041.8,3041.7,0.9866]
[1765056223513,4.57032876,3041.8,3041.7,0.9866]
[1765056223683,5.08932876,3041.8,3041.7,0.9866]
[1765056224183,4.95767251,3041.8,3041.7,0.9866]
[1765056225219,1.15114539,3041.8,3041.7,0.9866]
[1765056226114,4.43867251,3041.8,3041.7,0.4907]
[1765056226504,4.43867251,3041.8,3041.7,0.9866]
[1765056226900,1.15114539,3041.8,3041.7,0.9866]
[1765056227103,6.00804695,3041.8,3041.7,0.001]
[1765056227305,7.09464695,3041.8,3041.7,0.001]
[1765056227617,13.82470372,3041.8,3041.7,0.001]
[1765056228897,7.50015095,3041.8,3041.7,0.001]
[1765056229420,7.03605095,3041.8,3041.7,0.001]
[1765056229794,7.50015095,3041.8,3041.7,0.001]
[1765056231412,7.03605095,3041.8,3041.7,0.001]
[1765056232586,6.54165095,3041.8,3041.7,0.001]
[1765056232997,6.54165095,3041.8,3041.7,0.4776]
[1765056235695,6.44165095,3041.8,3041.7,0.4776]
[1765056236416,7.47685095,3041.8,3041.7,0.001]
[1765056238026,14.52699783,3041.8,3041.7,0.001]
[1765056244037,7.26724506,3041.8,3041.7,0.001]
[1765056244427,7.73694506,3041.8,3041.7,0.001]
[1765056245133,7.26724506,3041.8,3041.7,0.4776]
[1765056245522,7.26724506,3041.8,3041.7,0.001]
[1765056246670,7.26724506,3041.8,3041.7,0.4776]
[1765056246827,7.73694506,3041.8,3041.7,0.001]
[1765056247864,2.8633395,3041.8,3041.7,0.4776]
[1765056248015,5.16426662,3041.8,3041.7,0.4776]
[1765056248220,5.68326662,3041.8,3041.7,0.9401]
[1765056248926,1.15114539,3041.8,3041.7,0.9401]
[1765056249139,1.67014539,3041.8,3041.7,0.9401]
[1765056250551,1.15114539,3042.0,3041.7,7.26465277]
[1765056250720,1.67014539,3042.0,3041.9,0.4766]
[1765056251350,1.67014539,3042.0,3041.9,0.9391]
[1765056258058,1.15114539,3042.0,3041.9,0.9391]
[1765056259828,4.43815988,3042.3,3041.9,7.26365277]
[1765056260027,4.95715988,3042.3,3042.2,0.5691]
[1765056260228,4.95715988,3042.3,3042.2,1.0432]
[1765056260837,4.95715988,3042.3,3042.2,0.5691]
[1765056261446,5.9442991,3042.3,3042.2,0.5691]
[1765056261857,5.9442991,3042.3,3042.2,1.0432]
[1765056262956,4.95715988,3042.3,3042.2,1.0432]
[1765056264256,1.67014539,3042.3,3042.2,1.0432]
[1765056264435,1.67014539,3042.5,3042.2,1.0432]
[1765056264637,1.15114539,3042.3,3042.2,0.5666]
[1765056265759,1.15114539,3042.3,3042.2,0.5905]
[1765056265952,1.15114539,3042.3,3042.2,1.0646]
[1765056266266,4.4381322,3042.3,3042.2,0.5905]
[1765056266466,4.4381322,3042.3,3042.2,0.498]
[1765056268935,4.9296322,3042.3,3042.0,0.0925]
[1765056269185,1.31481634,3042.1,3042.0,0.0925]
[1765056269538,1.31481634,3042.1,3042.0,0.5905]
[1765056271155,3.28698681,3042.3,3042.0,1.0646]